[Event "*** SCC Grand Prix: Titled Tuesday Blitz"]
[Site "Chess.com"]
[Date "2020.07.14"]
[Round "3"]
[White "eCztery"]
[Black "warmoatmeal"]
[Result "0-1"]
[WhiteElo "2434"]
[BlackElo "2314"]
[TimeControl "180+1"]
[EndTime "10:30:30 PDT"]
[Termination "warmoatmeal won by resignation"]

1. e4 {[%clk 0:03:00.9]} 1... c6 {[%clk 0:02:59.6]} 2. Nc3 {[%clk 0:03:00.6]}
2... d5 {[%clk 0:02:59]} 3. Nf3 {[%clk 0:03:00.9]} 3... dxe4 {[%clk 0:02:58.2]}
4. Nxe4 {[%clk 0:03:01.8]} 4... Nf6 {[%clk 0:02:54.8]} 5. Qe2 {[%clk 0:03:01.3]}
5... Nxe4 {[%clk 0:02:50.3]} 6. Qxe4 {[%clk 0:03:02.2]} 6... Qd5 {[%clk
0:02:46.1]} 7. Qxd5 {[%clk 0:02:58.2]} 7... cxd5 {[%clk 0:02:45]} 8. d4 {[%clk
0:02:58.3]} 8... Nc6 {[%clk 0:02:44.8]} 9. Bb5 {[%clk 0:02:54.9]} 9... Bd7
{[%clk 0:02:24.7]} 10. c3 {[%clk 0:02:51.6]} 10... e6 {[%clk 0:02:22.8]} 11. O-O
{[%clk 0:02:48.2]} 11... a6 {[%clk 0:02:22.7]} 12. Ba4 {[%clk 0:02:43.6]} 12...
Be7 {[%clk 0:02:21.4]} 13. Bf4 {[%clk 0:02:39.8]} 13... O-O {[%clk 0:02:18]} 14.
Rfe1 {[%clk 0:02:40.2]} 14... Rfd8 {[%clk 0:02:17.4]} 15. Rad1 {[%clk
0:02:35.8]} 15... Rac8 {[%clk 0:02:13.4]} 16. Bc2 {[%clk 0:02:32.4]} 16... g6
{[%clk 0:02:11.7]} 17. h3 {[%clk 0:02:28.6]} 17... Be8 {[%clk 0:02:04.9]} 18.
Ne5 {[%clk 0:02:24.1]} 18... Nxe5 {[%clk 0:02:00.9]} 19. Bxe5 {[%clk 0:02:24.5]}
19... Bd6 {[%clk 0:02:00.8]} 20. Bf6 {[%clk 0:02:24.1]} 20... Rd7 {[%clk
0:01:57.5]} 21. g3 {[%clk 0:02:20.8]} 21... Be7 {[%clk 0:01:56.6]} 22. Be5
{[%clk 0:02:19.9]} 22... Bd6 {[%clk 0:01:51.9]} 23. a4 {[%clk 0:02:00.6]} 23...
Bxe5 {[%clk 0:01:42.2]} 24. Rxe5 {[%clk 0:02:01.5]} 24... Rdc7 {[%clk
0:01:42.3]} 25. a5 {[%clk 0:01:58.7]} 25... Rc4 {[%clk 0:01:34.4]} 26. Bb3
{[%clk 0:01:36]} 26... Ba4 {[%clk 0:01:24.9]} 27. Bxc4 {[%clk 0:01:36]} 27...
Bxd1 {[%clk 0:01:24.2]} 28. Bd3 {[%clk 0:01:36]} 28... Rb8 {[%clk 0:01:17.2]}
29. f4 {[%clk 0:01:33.8]} 29... h5 {[%clk 0:01:17]} 30. Re1 {[%clk 0:01:31.8]}
30... Ba4 {[%clk 0:01:09.8]} 31. g4 {[%clk 0:01:32.1]} 31... hxg4 {[%clk
0:01:08.3]} 32. hxg4 {[%clk 0:01:33]} 32... b6 {[%clk 0:01:04.3]} 33. axb6
{[%clk 0:01:06.4]} 33... Rxb6 {[%clk 0:01:03.2]} 34. b4 {[%clk 0:01:02.9]} 34...
Rc6 {[%clk 0:01:01.2]} 35. Ra1 {[%clk 0:00:55.6]} 35... Bb5 {[%clk 0:00:59.4]}
36. Bxb5 {[%clk 0:00:55]} 36... axb5 {[%clk 0:01:00.3]} 37. Ra3 {[%clk
0:00:54.5]} 37... Kg7 {[%clk 0:00:57.5]} 38. Kf2 {[%clk 0:00:55]} 38... g5
{[%clk 0:00:55]} 39. fxg5 {[%clk 0:00:38.3]} 39... Kg6 {[%clk 0:00:55]} 40. Ra5
{[%clk 0:00:24.9]} 40... Rxc3 {[%clk 0:00:53.5]} 41. Rxb5 {[%clk 0:00:25.1]}
41... Rd3 {[%clk 0:00:51.1]} 42. Rb8 {[%clk 0:00:20.3]} 42... Rxd4 {[%clk
0:00:50.9]} 43. b5 {[%clk 0:00:18.3]} 43... Rxg4 {[%clk 0:00:28.3]} 44. b6
{[%clk 0:00:18.4]} 44... Rb4 {[%clk 0:00:28.4]} 45. b7 {[%clk 0:00:17.8]} 45...
Kf5 {[%clk 0:00:28.3]} 46. Ke3 {[%clk 0:00:17.7]} 46... e5 {[%clk 0:00:27.6]}
47. Kd3 {[%clk 0:00:17.8]} 47... Rb3+ {[%clk 0:00:25.5]} 48. Kc2 {[%clk
0:00:18]} 48... Rb6 {[%clk 0:00:25.8]} 49. Kc3 {[%clk 0:00:18.4]} 49... Ke4
{[%clk 0:00:25.3]} 50. Kc2 {[%clk 0:00:16.5]} 50... d4 {[%clk 0:00:25.2]} 51.
Kd2 {[%clk 0:00:17]} 51... Rb2+ {[%clk 0:00:24.6]} 52. Kc1 {[%clk 0:00:17.1]}
52... Rb4 {[%clk 0:00:20.1]} 53. Kc2 {[%clk 0:00:17.5]} 53... Ke3 {[%clk
0:00:19.7]} 54. Re8 {[%clk 0:00:15.8]} 54... Rxb7 {[%clk 0:00:17]} 55. Rxe5+
{[%clk 0:00:16.3]} 55... Kf4 {[%clk 0:00:15.5]} 56. Rd5 {[%clk 0:00:15.1]} 56...
Re7 {[%clk 0:00:12.9]} 57. Kd3 {[%clk 0:00:13.2]} 57... Re5 {[%clk 0:00:09]} 58.
Rd7 {[%clk 0:00:11.1]} 58... Rf5 {[%clk 0:00:08.1]} 59. Kxd4 {[%clk 0:00:08.4]}
59... Kxg5 {[%clk 0:00:08.6]} 60. Ke4 {[%clk 0:00:09.3]} 60... Rf1 {[%clk
0:00:06.8]} 61. Rd5+ {[%clk 0:00:08.7]} 61... f5+ {[%clk 0:00:07.3]} 62. Ke3
{[%clk 0:00:07.5]} 62... Kg4 {[%clk 0:00:08.2]} 63. Ke2 {[%clk 0:00:07.8]} 63...
Ra1 {[%clk 0:00:07.8]} 64. Kf2 {[%clk 0:00:07]} 64... Ra2+ {[%clk 0:00:08.1]}
65. Kf1 {[%clk 0:00:06.8]} 65... f4 {[%clk 0:00:08.7]} 66. Rd1 {[%clk
0:00:06.6]} 66... Kf3 {[%clk 0:00:08.3]} 67. Kg1 {[%clk 0:00:06.2]} 67... Rc2
{[%clk 0:00:06.2]} 68. Rb1 {[%clk 0:00:06]} 68... Kg4 {[%clk 0:00:06.3]} 69. Rd1
{[%clk 0:00:05.9]} 69... Kg3 {[%clk 0:00:06.3]} 70. Rb1 {[%clk 0:00:05.8]} 70...
f3 {[%clk 0:00:05.8]} 71. Rd1 {[%clk 0:00:05.1]} 71... Rg2+ {[%clk 0:00:05.9]}
72. Kh1 {[%clk 0:00:05.1]} 72... Rh2+ {[%clk 0:00:05.9]} 73. Kg1 {[%clk
0:00:04.7]} 73... f2+ {[%clk 0:00:06.8]} 74. Kf1 {[%clk 0:00:05.1]} 74... Rh1+
{[%clk 0:00:07.7]} 75. Ke2 {[%clk 0:00:05.6]} 75... Rxd1 {[%clk 0:00:08.6]} 0-1

[Event "*** SCC Grand Prix: Titled Tuesday Blitz"]
[Site "Chess.com"]
[Date "2020.07.14"]
[Round "3"]
[White "Harry_Rakkel"]
[Black "eightbyeightchess"]
[Result "0-1"]
[WhiteElo "2565"]
[BlackElo "2406"]
[TimeControl "180+1"]
[EndTime "10:30:38 PDT"]
[Termination "eightbyeightchess won by resignation"]

1. e4 {[%clk 0:03:00.9]} 1... d5 {[%clk 0:02:59.3]} 2. exd5 {[%clk 0:02:59.6]}
2... Nf6 {[%clk 0:02:59.4]} 3. d4 {[%clk 0:02:56.7]} 3... Bg4 {[%clk 0:02:59.2]}
4. Be2 {[%clk 0:02:55.2]} 4... Bxe2 {[%clk 0:02:59.2]} 5. Qxe2 {[%clk 0:02:55]}
5... Qxd5 {[%clk 0:02:59.2]} 6. Nf3 {[%clk 0:02:54.5]} 6... Nc6 {[%clk
0:02:58.6]} 7. c4 {[%clk 0:02:52.9]} 7... Qf5 {[%clk 0:02:53.9]} 8. O-O {[%clk
0:02:44.4]} 8... O-O-O {[%clk 0:02:51.8]} 9. d5 {[%clk 0:02:39.6]} 9... Nb4
{[%clk 0:02:51.8]} 10. a3 {[%clk 0:02:33.7]} 10... Qd3 {[%clk 0:02:40.7]} 11.
Re1 {[%clk 0:02:19.6]} 11... Qxe2 {[%clk 0:02:28.7]} 12. Rxe2 {[%clk 0:02:20.5]}
12... Nd3 {[%clk 0:02:25.2]} 13. Nc3 {[%clk 0:02:17.3]} 13... Nd7 {[%clk
0:02:07.9]} 14. Be3 {[%clk 0:01:57.8]} 14... f6 {[%clk 0:01:57.1]} 15. Nb5
{[%clk 0:01:27.7]} 15... a6 {[%clk 0:01:39.5]} 16. Nbd4 {[%clk 0:01:26.4]} 16...
Nb6 {[%clk 0:01:04.3]} 17. Ne6 {[%clk 0:01:12.9]} 17... Nxc4 {[%clk 0:01:03.4]}
18. Nxd8 {[%clk 0:01:11.7]} 18... Kxd8 {[%clk 0:01:04.3]} 19. b3 {[%clk
0:01:09.3]} 19... Nce5 {[%clk 0:00:53.6]} 20. Nd4 {[%clk 0:01:07.1]} 20... e6
{[%clk 0:00:43.6]} 21. Nxe6+ {[%clk 0:01:05.1]} 21... Kd7 {[%clk 0:00:43]} 22.
Rd1 {[%clk 0:00:55.3]} 22... g5 {[%clk 0:00:25.9]} 23. Nxf8+ {[%clk 0:00:53.5]}
23... Rxf8 {[%clk 0:00:25.5]} 24. Red2 {[%clk 0:00:54]} 24... Nf4 {[%clk
0:00:23.7]} 25. Bxf4 {[%clk 0:00:46.8]} 25... gxf4 {[%clk 0:00:24.6]} 26. f3
{[%clk 0:00:46.5]} 26... Kd6 {[%clk 0:00:22.4]} 27. Rd4 {[%clk 0:00:44.5]} 27...
Ng6 {[%clk 0:00:20.3]} 28. Re4 {[%clk 0:00:44]} 28... Rf7 {[%clk 0:00:19]} 29.
Re6+ {[%clk 0:00:43.3]} 29... Kd7 {[%clk 0:00:18.6]} 30. Kf2 {[%clk 0:00:38]}
30... Ne5 {[%clk 0:00:17.9]} 31. g3 {[%clk 0:00:31.2]} 31... c6 {[%clk
0:00:16.6]} 32. gxf4 {[%clk 0:00:28.9]} 32... cxd5 {[%clk 0:00:15.8]} 33. f5
{[%clk 0:00:25.8]} 33... Ng6 {[%clk 0:00:13.7]} 34. Rxd5+ {[%clk 0:00:24.2]}
34... Kc7 {[%clk 0:00:14.3]} 35. Rd4 {[%clk 0:00:23.5]} 35... Ne7 {[%clk
0:00:11.9]} 36. Rf4 {[%clk 0:00:14.9]} 36... Nd5 {[%clk 0:00:09.9]} 37. Rc4+
{[%clk 0:00:13.4]} 37... Kb8 {[%clk 0:00:09.9]} 38. Rd4 {[%clk 0:00:12]} 38...
Nc7 {[%clk 0:00:09.5]} 39. Re1 {[%clk 0:00:10.4]} 39... Nb5 {[%clk 0:00:08.8]}
40. Rd8+ {[%clk 0:00:09.2]} 40... Ka7 {[%clk 0:00:06.4]} 41. a4 {[%clk 0:00:08]}
41... Nc7 {[%clk 0:00:04.7]} 42. Rc8 {[%clk 0:00:06.7]} 42... Nd5 {[%clk
0:00:04.2]} 43. Rce8 {[%clk 0:00:05.5]} 43... Kb6 {[%clk 0:00:03.6]} 44. R1e4
{[%clk 0:00:03.8]} 44... Rc7 {[%clk 0:00:02.5]} 45. R8e6+ {[%clk 0:00:03.5]}
45... Ka7 {[%clk 0:00:01.8]} 46. Rc4 {[%clk 0:00:03.3]} 46... Rd7 {[%clk
0:00:01.8]} 47. Rd4 {[%clk 0:00:03.2]} 47... Nb6 {[%clk 0:00:01.9]} 48. Rxd7
{[%clk 0:00:03.1]} 48... Nxd7 {[%clk 0:00:02.8]} 49. Re7 {[%clk 0:00:03.5]}
49... Ne5 {[%clk 0:00:03.7]} 50. Rxh7 {[%clk 0:00:03]} 50... Nd3+ {[%clk
0:00:04.6]} 51. Ke3 {[%clk 0:00:02.4]} 51... Nc5 {[%clk 0:00:05.5]} 52. b4
{[%clk 0:00:01.7]} 52... Nxa4 {[%clk 0:00:05.9]} 53. b5 {[%clk 0:00:02.6]} 53...
axb5 {[%clk 0:00:05.9]} 54. Rf7 {[%clk 0:00:02.9]} 54... b4 {[%clk 0:00:06.4]}
55. Rxf6 {[%clk 0:00:03.2]} 55... b3 {[%clk 0:00:06.9]} 56. Rd6 {[%clk
0:00:03.8]} 56... b2 {[%clk 0:00:07]} 57. Rd1 {[%clk 0:00:04.3]} 57... Nc3
{[%clk 0:00:07.4]} 58. Rf1 {[%clk 0:00:04.8]} 58... b1=Q {[%clk 0:00:07.6]} 59.
Rxb1 {[%clk 0:00:04.9]} 59... Nxb1 {[%clk 0:00:08.5]} 60. f6 {[%clk 0:00:05.2]}
60... Nc3 {[%clk 0:00:09.4]} 61. Kd4 {[%clk 0:00:05.2]} 61... Ne2+ {[%clk
0:00:09.4]} 62. Ke5 {[%clk 0:00:04.8]} 62... Ng1 {[%clk 0:00:08.4]} 63. f4
{[%clk 0:00:05.1]} 63... Nf3+ {[%clk 0:00:08.6]} 64. Kf5 {[%clk 0:00:05.1]}
64... Nd4+ {[%clk 0:00:08.1]} 65. Ke5 {[%clk 0:00:05.3]} 65... Nc6+ {[%clk
0:00:08.2]} 66. Kd6 {[%clk 0:00:05.4]} 66... Nd8 {[%clk 0:00:06.6]} 67. Ke7
{[%clk 0:00:05.6]} 67... Nc6+ {[%clk 0:00:06.9]} 68. Ke6 {[%clk 0:00:05.5]}
68... b5 {[%clk 0:00:06.7]} 69. f7 {[%clk 0:00:05.2]} 69... Nd8+ {[%clk
0:00:06.9]} 70. Ke7 {[%clk 0:00:05.1]} 70... Nxf7 {[%clk 0:00:07.8]} 71. Kxf7
{[%clk 0:00:05.8]} 71... b4 {[%clk 0:00:08.3]} 72. h4 {[%clk 0:00:05.6]} 72...
b3 {[%clk 0:00:09.2]} 73. h5 {[%clk 0:00:06.4]} 73... b2 {[%clk 0:00:10.1]} 74.
h6 {[%clk 0:00:07.1]} 74... b1=Q {[%clk 0:00:11]} 75. Kg7 {[%clk 0:00:07.1]}
75... Qb7+ {[%clk 0:00:10.7]} 76. Kg6 {[%clk 0:00:06.8]} 76... Qe4+ {[%clk
0:00:10.7]} 77. f5 {[%clk 0:00:06.4]} 77... Qg4+ {[%clk 0:00:10.4]} 78. Kf6
{[%clk 0:00:06.7]} 78... Qh4+ {[%clk 0:00:10.3]} 79. Kg6 {[%clk 0:00:06.9]}
79... Qd8 {[%clk 0:00:08.2]} 80. Kg7 {[%clk 0:00:06.5]} 80... Qe7+ {[%clk
0:00:08.2]} 81. Kg6 {[%clk 0:00:06]} 81... Qf8 {[%clk 0:00:08.2]} 82. Kh7 {[%clk
0:00:04.1]} 82... Qxf5+ {[%clk 0:00:06.6]} 83. Kg7 {[%clk 0:00:03.4]} 0-1

[Event "*** SCC Grand Prix: Titled Tuesday Blitz"]
[Site "Chess.com"]
[Date "2020.07.14"]
[Round "3"]
[White "Chessdreamer2020"]
[Black "Biranidun"]
[Result "0-1"]
[WhiteElo "2615"]
[BlackElo "2870"]
[TimeControl "180+1"]
[EndTime "10:30:40 PDT"]
[Termination "Biranidun won by checkmate"]

1. e4 {[%clk 0:03:00.9]} 1... c5 {[%clk 0:02:59.9]} 2. Nf3 {[%clk 0:02:58.5]}
2... d6 {[%clk 0:03:00.4]} 3. d4 {[%clk 0:02:57.5]} 3... cxd4 {[%clk 0:03:01.3]}
4. Qxd4 {[%clk 0:02:58]} 4... Nc6 {[%clk 0:03:00.4]} 5. Bb5 {[%clk 0:02:57.3]}
5... Bd7 {[%clk 0:03:00.7]} 6. Qd3 {[%clk 0:02:57.2]} 6... Nf6 {[%clk
0:02:58.7]} 7. O-O {[%clk 0:02:56.1]} 7... g6 {[%clk 0:02:57.8]} 8. h3 {[%clk
0:02:55.6]} 8... Bg7 {[%clk 0:02:56.4]} 9. c4 {[%clk 0:02:56.1]} 9... O-O {[%clk
0:02:54.6]} 10. Nc3 {[%clk 0:02:56.7]} 10... a6 {[%clk 0:02:52.2]} 11. Bxc6
{[%clk 0:02:56.2]} 11... Bxc6 {[%clk 0:02:52.9]} 12. Be3 {[%clk 0:02:55.6]}
12... Nd7 {[%clk 0:02:51.8]} 13. Nd4 {[%clk 0:02:55.7]} 13... Nc5 {[%clk
0:02:51.5]} 14. Qc2 {[%clk 0:02:55.7]} 14... Ne6 {[%clk 0:02:50.4]} 15. Rfd1
{[%clk 0:02:48.4]} 15... Rc8 {[%clk 0:02:49.8]} 16. b3 {[%clk 0:02:40.6]} 16...
b5 {[%clk 0:02:40]} 17. cxb5 {[%clk 0:02:29.2]} 17... axb5 {[%clk 0:02:39.3]}
18. f3 {[%clk 0:02:01.2]} 18... b4 {[%clk 0:01:58.7]} 19. Nce2 {[%clk 0:01:54]}
19... Bb5 {[%clk 0:01:22]} 20. Qd2 {[%clk 0:01:51.9]} 20... Bxe2 {[%clk
0:01:21.7]} 21. Qxe2 {[%clk 0:01:50.8]} 21... Nxd4 {[%clk 0:01:20.5]} 22. Bxd4
{[%clk 0:01:50.9]} 22... Bxd4+ {[%clk 0:01:21.4]} 23. Rxd4 {[%clk 0:01:51.3]}
23... Qb6 {[%clk 0:01:22.1]} 24. Qf2 {[%clk 0:01:51.4]} 24... Rc2 {[%clk
0:01:21.5]} 25. Rd2 {[%clk 0:01:46]} 25... Qxf2+ {[%clk 0:01:19.5]} 26. Rxf2
{[%clk 0:01:45]} 26... Rfc8 {[%clk 0:01:18.7]} 27. Rxc2 {[%clk 0:01:34.8]} 27...
Rxc2 {[%clk 0:01:19.6]} 28. a3 {[%clk 0:01:35.2]} 28... bxa3 {[%clk 0:00:57.2]}
29. Rxa3 {[%clk 0:01:34]} 29... Kg7 {[%clk 0:00:55.4]} 30. Kh2 {[%clk
0:01:23.2]} 30... Kf6 {[%clk 0:00:54]} 31. Kg3 {[%clk 0:01:23.3]} 31... g5
{[%clk 0:00:53.8]} 32. Ra5 {[%clk 0:01:14.4]} 32... Rb2 {[%clk 0:00:50.6]} 33.
Rb5 {[%clk 0:01:14.4]} 33... e6 {[%clk 0:00:47.6]} 34. Kh2 {[%clk 0:01:11.9]}
34... h6 {[%clk 0:00:45.9]} 35. Kg3 {[%clk 0:01:11.6]} 35... Ke7 {[%clk
0:00:45.2]} 36. Rb7+ {[%clk 0:01:05.7]} 36... Kf6 {[%clk 0:00:45.1]} 37. Rb5
{[%clk 0:01:06.1]} 37... h5 {[%clk 0:00:42.6]} 38. h4 {[%clk 0:00:58.3]} 38...
gxh4+ {[%clk 0:00:42.7]} 39. Kh3 {[%clk 0:00:56.1]} 39... Kg6 {[%clk 0:00:38.5]}
40. Rb8 {[%clk 0:00:50.9]} 40... Kg5 {[%clk 0:00:36.1]} 41. b4 {[%clk
0:00:51.3]} 41... Kf4 {[%clk 0:00:35.7]} 42. b5 {[%clk 0:00:51.8]} 42... Rb1
{[%clk 0:00:28.8]} 43. Kh2 {[%clk 0:00:51.1]} 43... f5 {[%clk 0:00:21.1]} 44.
exf5 {[%clk 0:00:49]} 44... Kxf5 {[%clk 0:00:22]} 45. b6 {[%clk 0:00:48.6]}
45... d5 {[%clk 0:00:20.4]} 46. b7 {[%clk 0:00:48.4]} 46... Ke5 {[%clk
0:00:20.9]} 47. Rh8 {[%clk 0:00:39.8]} 47... Rxb7 {[%clk 0:00:20.1]} 48. Rxh5+
{[%clk 0:00:40.5]} 48... Kf4 {[%clk 0:00:18.5]} 49. Rxh4+ {[%clk 0:00:40.6]}
49... Ke3 {[%clk 0:00:19.1]} 50. Rh5 {[%clk 0:00:36.5]} 50... Kf4 {[%clk
0:00:11.9]} 51. Rh4+ {[%clk 0:00:34.6]} 51... Kg5 {[%clk 0:00:10.9]} 52. Rd4
{[%clk 0:00:32.7]} 52... Rb5 {[%clk 0:00:10.2]} 53. f4+ {[%clk 0:00:31.5]} 53...
Kf5 {[%clk 0:00:10.6]} 54. Kh3 {[%clk 0:00:30.1]} 54... Rb3+ {[%clk 0:00:10.1]}
55. g3 {[%clk 0:00:30.3]} 55... Rb1 {[%clk 0:00:08.9]} 56. g4+ {[%clk
0:00:29.2]} 56... Kf6 {[%clk 0:00:09.2]} 57. Kg3 {[%clk 0:00:28.6]} 57... Rb3+
{[%clk 0:00:08.8]} 58. Kh4 {[%clk 0:00:27.4]} 58... Rc3 {[%clk 0:00:08.8]} 59.
Rd2 {[%clk 0:00:24.3]} 59... Rf3 {[%clk 0:00:08.2]} 60. Rd4 {[%clk 0:00:23.5]}
60... Rc3 {[%clk 0:00:07.4]} 61. f5 {[%clk 0:00:22.8]} 61... Ke5 {[%clk
0:00:05.5]} 62. Rd2 {[%clk 0:00:20.6]} 62... exf5 {[%clk 0:00:05.7]} 63. gxf5
{[%clk 0:00:20.8]} 63... Rf3 {[%clk 0:00:06.1]} 64. Kg4 {[%clk 0:00:20.4]} 64...
Rf4+ {[%clk 0:00:06.3]} 65. Kg3 {[%clk 0:00:20.2]} 65... Rxf5 {[%clk 0:00:06.8]}
66. Re2+ {[%clk 0:00:20.4]} 66... Kd4 {[%clk 0:00:07.2]} 67. Rd2+ {[%clk
0:00:20.4]} 67... Ke3 {[%clk 0:00:07.1]} 68. Ra2 {[%clk 0:00:16.8]} 68... Rg5+
{[%clk 0:00:07]} 69. Kh4 {[%clk 0:00:16.1]} 69... Rg1 {[%clk 0:00:07]} 70. Ra3+
{[%clk 0:00:15.2]} 70... Ke4 {[%clk 0:00:06.6]} 71. Ra8 {[%clk 0:00:14.3]} 71...
d4 {[%clk 0:00:06.7]} 72. Ra3 {[%clk 0:00:14]} 72... d3 {[%clk 0:00:06.7]} 73.
Kh3 {[%clk 0:00:13]} 73... d2 {[%clk 0:00:06.4]} 74. Ra4+ {[%clk 0:00:11.1]}
74... Ke3 {[%clk 0:00:06.8]} 75. Ra3+ {[%clk 0:00:11.4]} 75... Ke2 {[%clk
0:00:07.3]} 76. Ra2 {[%clk 0:00:11.5]} 76... Ke1 {[%clk 0:00:07.7]} 77. Rxd2
{[%clk 0:00:11.1]} 77... Kxd2 {[%clk 0:00:07.6]} 78. Kh2 {[%clk 0:00:12]} 78...
Rg8 {[%clk 0:00:08.2]} 79. Kh3 {[%clk 0:00:12.9]} 79... Kc3 {[%clk 0:00:08.8]}
80. Kh4 {[%clk 0:00:13.8]} 80... Kb4 {[%clk 0:00:09.5]} 81. Kh5 {[%clk
0:00:14.7]} 81... Ka5 {[%clk 0:00:10.3]} 82. Kh6 {[%clk 0:00:15.6]} 82... Rg1
{[%clk 0:00:10.7]} 83. Kh7 {[%clk 0:00:16.5]} 83... Kb6 {[%clk 0:00:11.1]} 84.
Kh6 {[%clk 0:00:17.4]} 84... Kc7 {[%clk 0:00:12]} 85. Kh5 {[%clk 0:00:18.3]}
85... Kd6 {[%clk 0:00:12.9]} 86. Kh4 {[%clk 0:00:19.2]} 86... Ke5 {[%clk
0:00:13.8]} 87. Kh3 {[%clk 0:00:20.1]} 87... Kf4 {[%clk 0:00:14.2]} 88. Kh2
{[%clk 0:00:21]} 88... Rg3 {[%clk 0:00:14.3]} 89. Kh1 {[%clk 0:00:20.6]} 89...
Kf3 {[%clk 0:00:14.6]} 90. Kh2 {[%clk 0:00:21.5]} 90... Kf2 {[%clk 0:00:15.1]}
91. Kh1 {[%clk 0:00:22.4]} 91... Rh3# {[%clk 0:00:15.1]} 0-1

[Event "*** SCC Grand Prix: Titled Tuesday Blitz"]
[Site "Chess.com"]
[Date "2020.07.14"]
[Round "3"]
[White "Bastiandash"]
[Black "manitodeplomo"]
[Result "0-1"]
[WhiteElo "2320"]
[BlackElo "2515"]
[TimeControl "180+1"]
[EndTime "10:30:41 PDT"]
[Termination "manitodeplomo won on time"]

1. d4 {[%clk 0:03:00.9]} 1... g6 {[%clk 0:02:56.9]} 2. Nf3 {[%clk 0:03:00.9]}
2... Bg7 {[%clk 0:02:57.8]} 3. c3 {[%clk 0:03:01.2]} 3... c5 {[%clk 0:02:57.6]}
4. Bg5 {[%clk 0:02:57.7]} 4... Nf6 {[%clk 0:02:58.5]} 5. e3 {[%clk 0:02:56.3]}
5... O-O {[%clk 0:02:57.9]} 6. Be2 {[%clk 0:02:56.5]} 6... Qc7 {[%clk
0:02:55.3]} 7. O-O {[%clk 0:02:54.8]} 7... d6 {[%clk 0:02:55.7]} 8. Nbd2 {[%clk
0:02:53.8]} 8... Nbd7 {[%clk 0:02:56]} 9. a4 {[%clk 0:02:51]} 9... b6 {[%clk
0:02:54.3]} 10. a5 {[%clk 0:02:48.7]} 10... Bb7 {[%clk 0:02:53.6]} 11. a6 {[%clk
0:02:33.5]} 11... Bc6 {[%clk 0:02:52.9]} 12. Qb3 {[%clk 0:02:32.1]} 12... Rab8
{[%clk 0:02:51.7]} 13. Bb5 {[%clk 0:02:31.9]} 13... h6 {[%clk 0:02:46.5]} 14.
Bh4 {[%clk 0:02:29.5]} 14... Rfc8 {[%clk 0:02:33.5]} 15. Rfe1 {[%clk 0:02:18.3]}
15... Bxb5 {[%clk 0:02:31.9]} 16. Qxb5 {[%clk 0:02:17.6]} 16... Qc6 {[%clk
0:02:32.8]} 17. c4 {[%clk 0:01:53.5]} 17... Kf8 {[%clk 0:02:10.1]} 18. Qxc6
{[%clk 0:01:19.8]} 18... Rxc6 {[%clk 0:02:07.7]} 19. d5 {[%clk 0:01:20.7]} 19...
Rcc8 {[%clk 0:02:06.5]} 20. e4 {[%clk 0:01:21.2]} 20... g5 {[%clk 0:02:04.6]}
21. Bg3 {[%clk 0:01:20.8]} 21... Nh5 {[%clk 0:02:05.5]} 22. Ra2 {[%clk
0:01:13.2]} 22... b5 {[%clk 0:02:02.9]} 23. Kf1 {[%clk 0:01:06.8]} 23... Rc7
{[%clk 0:01:09.3]} 24. Ra5 {[%clk 0:00:43.3]} 24... bxc4 {[%clk 0:01:01.4]} 25.
Nxc4 {[%clk 0:00:44.2]} 25... Nxg3+ {[%clk 0:00:58.9]} 26. hxg3 {[%clk
0:00:43.8]} 26... Rb4 {[%clk 0:00:57.6]} 27. Nfd2 {[%clk 0:00:37.4]} 27... Bxb2
{[%clk 0:00:52]} 28. Rb1 {[%clk 0:00:29]} 28... Bc3 {[%clk 0:00:50.9]} 29. Rb5
{[%clk 0:00:17.3]} 29... Rxb1+ {[%clk 0:00:48.1]} 30. Rxb1 {[%clk 0:00:18.2]}
30... Bxd2 {[%clk 0:00:42]} 31. Nxd2 {[%clk 0:00:19.1]} 31... Nb6 {[%clk
0:00:41.7]} 32. Ke2 {[%clk 0:00:13.4]} 32... e6 {[%clk 0:00:41.5]} 33. dxe6
{[%clk 0:00:11.9]} 33... fxe6 {[%clk 0:00:42.4]} 34. Kd3 {[%clk 0:00:12.8]}
34... d5 {[%clk 0:00:42.3]} 35. exd5 {[%clk 0:00:13.7]} 35... exd5 {[%clk
0:00:43]} 36. Rh1 {[%clk 0:00:14]} 36... Kg7 {[%clk 0:00:42.6]} 37. Re1 {[%clk
0:00:13.3]} 37... Kf6 {[%clk 0:00:41.9]} 38. Re8 {[%clk 0:00:11.8]} 38... c4+
{[%clk 0:00:31.1]} 39. Kc3 {[%clk 0:00:11.7]} 39... Na4+ {[%clk 0:00:29.8]} 40.
Kd4 {[%clk 0:00:06.2]} 40... c3 {[%clk 0:00:30.7]} 41. Nb3 {[%clk 0:00:04.5]}
41... c2 {[%clk 0:00:26.3]} 42. Nc1 {[%clk 0:00:04.5]} 42... Nb6 {[%clk
0:00:24.4]} 43. Rf8+ {[%clk 0:00:03.3]} 43... Ke6 {[%clk 0:00:23.4]} 44. Rd8
{[%clk 0:00:04.2]} 44... Rc4+ {[%clk 0:00:22.4]} 45. Kd3 {[%clk 0:00:04.7]}
45... Ra4 {[%clk 0:00:22.1]} 46. Kxc2 {[%clk 0:00:03.9]} 46... Rxa6 {[%clk
0:00:22]} 47. Rh8 {[%clk 0:00:04.5]} 47... Ra5 {[%clk 0:00:20.2]} 48. Rxh6+
{[%clk 0:00:03]} 48... Ke5 {[%clk 0:00:20.6]} 49. Rg6 {[%clk 0:00:02.9]} 49...
Kf5 {[%clk 0:00:18.5]} 50. Rg8 {[%clk 0:00:03.5]} 50... Rc5+ {[%clk 0:00:18.9]}
51. Kd2 {[%clk 0:00:03.4]} 51... Nc4+ {[%clk 0:00:18.6]} 52. Ke2 {[%clk
0:00:04]} 52... Ne5 {[%clk 0:00:18.8]} 53. Nd3 {[%clk 0:00:02.9]} 53... Nxd3
{[%clk 0:00:15.8]} 54. Kxd3 {[%clk 0:00:03.8]} 54... Ra5 {[%clk 0:00:15.4]} 55.
Rf8+ {[%clk 0:00:03.6]} 55... Kg4 {[%clk 0:00:15.2]} 56. Rg8 {[%clk 0:00:03.7]}
56... Ra2 {[%clk 0:00:13.7]} 57. Kd4 {[%clk 0:00:02.9]} 57... Rxf2 {[%clk
0:00:13.2]} 58. Kxd5 {[%clk 0:00:03.5]} 58... Rxg2 {[%clk 0:00:12.8]} 59. Ke4
{[%clk 0:00:03.6]} 59... Rxg3 {[%clk 0:00:13.7]} 60. Ra8 {[%clk 0:00:03.8]}
60... Rf3 {[%clk 0:00:13.4]} 61. Rxa7 {[%clk 0:00:03.6]} 61... Rf4+ {[%clk
0:00:13.6]} 62. Ke3 {[%clk 0:00:04.1]} 62... Rf1 {[%clk 0:00:13.7]} 63. Ke2
{[%clk 0:00:03.4]} 63... Rf8 {[%clk 0:00:12.9]} 64. Ke1 {[%clk 0:00:03.7]} 64...
Kh4 {[%clk 0:00:12.6]} 65. Rh7+ {[%clk 0:00:03.2]} 65... Kg3 {[%clk 0:00:12.5]}
66. Rg7 {[%clk 0:00:04.1]} 66... g4 {[%clk 0:00:12.9]} 67. Ke2 {[%clk 0:00:05]}
67... Kh3 {[%clk 0:00:12.5]} 68. Ke1 {[%clk 0:00:05.4]} 68... g3 {[%clk
0:00:12.5]} 69. Ke2 {[%clk 0:00:04.5]} 69... Kg2 {[%clk 0:00:12.7]} 70. Ke1
{[%clk 0:00:04.9]} 70... Kh2 {[%clk 0:00:12.8]} 71. Rh7+ {[%clk 0:00:02.5]}
71... Kg1 {[%clk 0:00:12.4]} 72. Rg7 {[%clk 0:00:03]} 72... Re8+ {[%clk
0:00:11.8]} 73. Kd2 {[%clk 0:00:02.3]} 73... g2 {[%clk 0:00:12.7]} 74. Kd3
{[%clk 0:00:02.1]} 74... Re5 {[%clk 0:00:12.5]} 75. Kd2 {[%clk 0:00:01.6]} 75...
Rf5 {[%clk 0:00:11.6]} 76. Ke2 {[%clk 0:00:01.6]} 76... Re5+ {[%clk 0:00:11.6]}
77. Kf3 {[%clk 0:00:01.4]} 77... Kf1 {[%clk 0:00:10.7]} 78. Rxg2 {[%clk
0:00:01.1]} 78... Rf5+ {[%clk 0:00:08.7]} 79. Kg4 {[%clk 0:00:01.5]} 79... Rg5+
{[%clk 0:00:08.2]} 0-1